Cogmind - Beta 16 @@@ ROGUE MODE // 2026.01.06 @ 22:55:28 Player: Legato Result: Destroyed by H-55 Commando with Gauss Rifle Performance ------------- Evolutions (0) 0 Regions Visited (3) 600 Robots Destroyed (34) 170 Value Destroyed (764) 764 Prototype IDs (28) 560 Alien Tech Used (0) 0 Bonus (300) 300 TOTAL SCORE: 2394 Bonus ------- Aligned with FarCom 300 Cogmind --------- Core Integrity 0/250 Matter 24/300 Energy 250/250 System Corruption 4% Temperature Cool (4) Movement Treading (152) Location -10/Exiles Parts ------- > --- POWER (1) -------- Ion Engine > --- PROPULSION (2) --- Light Treads Advanced Treads > --- UTILITY (2) ------ Large Storage Unit > --- WEAPON (2) ------- Improved Light Cannon > --- INVENTORY (15) --- Deuterium Engine Deuterium Engine Light Nuclear Core Light Treads Light Treads Weight Redist. System Signal Interpreter Improved Terrain Scanner Modified TNC Hacking Suite Hammer Peak State ------------ > --- POWER ------------ Deuterium Engine > --- PROPULSION ------- Light Treads Advanced Treads > --- UTILITY ---------- Large Storage Unit Sensor Array > --- WEAPON ----------- Improved Light Cannon Improved Light Cannon > --- INVENTORY -------- Ion Engine Ion Engine Ion Engine Light Nuclear Core Light Treads Light Treads Weight Redist. System Signal Interpreter Signal Interpreter Improved Terrain Scanner Light Armor Plating Improved Light Cannon Improved Light Cannon Rocket Launcher Hammer [Rating: 15] Favorites ----------- Power Ion Engine Engine Ion Engine Propulsion Light Treads Treads Light Treads Leg Aluminum Leg Utility Large Storage Unit Device Sensor Array Storage Large Storage Unit Processor Signal Interpreter Protection Light Armor Plating Weapon Improved Light Cannon Energy Gun Medium Laser Energy Cannon Beam Cannon Ballistic Cannon Improved Light Cannon Launcher Rocket Launcher Impact Weapon Hammer Special Melee Weapon Datajack Build | -11 -10 -10 -10 ------- Run | Yrd Mat Min Exi Slots Evolved . | . . . . Power . | . . . . Propulsion . | . . . . Utility . | . . . . Weapon . | . . . . Parts Attached 31 | 8 16 6 1 Power 4 | 1 2 1 . Engine 4 | 1 2 1 . Core . | . . . . Reactor . | . . . . Propulsion 7 | 2 4 1 . Treads 5 | . 4 1 . Leg 2 | 2 . . . Wheel . | . . . . Hover . | . . . . Flight . | . . . . Utility 9 | 2 5 1 1 Device 2 | 1 1 . . Storage 4 | 1 3 . . Processor 2 | . 1 1 . Hackware . | . . . . Protection 1 | . . . 1 Artifact . | . . . . Weapon 11 | 3 5 3 . Energy Gun 3 | 3 . . . Energy Cannon 1 | . 1 . . Ballistic Gun . | . . . . Ballistic Cannon 4 | . 2 2 . Launcher 1 | . . 1 . Special Weapon . | . . . . Impact Weapon 1 | . 1 . . Slashing Weapon . | . . . . Piercing Weapon . | . . . . Special Melee Weapon 1 | . 1 . . Unidentified Prototypes . | . . . . Parts Lost 3 | . . . 3 Power . | . . . . Propulsion . | . . . . Utility 1 | . . . 1 Weapon 2 | . . . 2 Highest Loss Streak 3 | . . . 3 To Critical Strikes . | . . . . Average Backups 11 | 4 12 13 11 Power 2 | 1 2 3 3 Propulsion 2 | 2 2 2 2 Utility 4 | 1 4 5 4 Weapon 2 | . 2 2 2 Tool/Special . | . . . . Unused Backups 15 | . 4 4 7 Power 6 | . 1 3 2 Propulsion 1 | . 1 . . Utility 8 | . 2 1 5 Weapon . | . . . . Tool/Special . | . . . . Average Slot Usage (%) 99 | . 99 99 99 Engine 14 | . 14 14 14 Treads 27 | . 27 28 28 Device 12 | . 14 13 5 Storage 14 | . 14 14 14 Protection 1 | . . . 8 Ballistic Cannon 26 | . 26 26 27 Peak Build Rating 15 | 8 11 15 13 Average Rating 10 | 6 10 12 12 On Entrance 8 | . 8 11 13 Avg Prop Armor Cover (%) . | . . . . Naked Turns . | . . . . Heaviest Build 36 | 15 34 34 36 Greatest Support 42 | 20 40 42 42 Greatest Overweight (x) 2 | 2 1 . . Average Overweight (x) . | . . . . Largest Inventory Capacity 25 | 8 25 15 15 Average Capacity 14 | 7 14 15 15 Most Carried 15 | 7 15 15 12 Average Carried 12 | 4 12 13 11 Final Capacity 15 | 8 15 15 15 Final Carried 15 | 7 15 12 11 Class Distribution -------------------- 100% | Mutant Dominant Class ---------------- Mutant | -10/Materials Mutant | -10/Mines Mutant | -10/Exiles Resources | -11 -10 -10 -10 ----------- Run | Yrd Mat Min Exi Matter Collected 1056 | 280 614 133 29 Remotely . | . . . . Salvage Created 634 | 113 393 49 79 Parts 51 | 11 27 5 8 Haulers Intercepted 1 | . 1 . . Recyclers Shooed 2 | 1 1 . . Parts Field Recycled . | . . . . Retrieved Matter . | . . . . Parts Self-Destructed . | . . . . Prevented . | . . . . Parts Restored . | . . . . Kills | -11 -10 -10 -10 ------- Run | Yrd Mat Min Exi Combat Hostiles Destroyed 20 | . 10 6 4 Cannons 15 | . 10 1 4 AOE 5 | . . 5 . Classes Destroyed 9 | 1 6 1 1 Worker 3 | . 2 1 . Builder 1 | . 1 . . Tunneler 5 | 5 . . . Hauler 1 | . 1 . . Recycler 1 | . 1 . . Watcher 3 | . 3 . . Swarmer 5 | . . 5 . Grunt 14 | . 10 1 3 Programmer 1 | . . . 1 Best Kill Streak 3 | 3 3 3 2 Combat Bots Only 3 | . 3 3 2 Max Kills in Single Turn 2 | 1 1 2 1 Gunslinging . | . . . . Exploded 2 | . . 2 . Melee . | . . . . Uniques/NPCs Destroyed . | . . . . Combat | -11 -10 -10 -10 -------- Run | Yrd Mat Min Exi Hostile Shots Fired 144 | . 53 28 63 Missed 36 | . 10 10 16 Hits 108 | . 43 18 47 Melee 3 | . . . 3 Projectile 105 | . 43 18 44 AOE 1 | . . . 1 Critical Strikes 1 | . . 1 . Damage Taken 1521 | . 524 327 670 Core 267 | . 74 88 105 Absorbed by Shields . | . . . . Regen/Repaired (Parts) 74 | . 74 . . Core Remaining (%) 100 | 100 . . . Volleys Fired 83 | 10 45 15 13 Largest 2 | 2 2 2 2 Hottest 100 | 100 66 66 66 Shots Fired 163 | 20 88 30 25 Gun 20 | 20 . . . Cannon 135 | . 88 23 24 Launcher 8 | . . 7 1 Special . | . . . . Kinetic 135 | . 88 23 24 Thermal 20 | 20 . . . Explosive 8 | . . 7 1 Electromagnetic . | . . . . Robot Hit Streak 10 | 2 7 4 10 Robot Miss Streak 3 | 3 3 3 2 Penetration Max . | . . . . Secondary Targets . | . . . . Shots Hit Robots 86 | 7 48 16 15 Core Hits 39 | 6 20 7 6 Critical Kills . | . . . . Critical Parts Destroyed . | . . . . Critical Strikes 8 | 1 2 4 1 Burn 1 | 1 . . . Blast 7 | . 2 4 1 Melee Attacks 6 | . 5 1 . Impact 2 | . 1 1 . Slashing . | . . . . Piercing . | . . . . Sneak Attacks 4 | . 4 . . Combat Hostiles . | . . . . Follow-up Attacks . | . . . . Damage Inflicted 2101 | 102 945 652 402 Guns 102 | 102 . . . Cannons 1601 | . 941 283 377 Explosions 375 | . . 350 25 Melee . | . . . . Ramming 23 | . 4 19 . Kinetic 1601 | . 941 283 377 Thermal 102 | 102 . . . Explosive 375 | . . 350 25 Electromagnetic . | . . . . Impact . | . . . . Slashing . | . . . . Piercing . | . . . . Highest Corruption 4 | . . . 4 Average Corruption 2 | . . . 2 Corruption Purged . | . . . . Corruption Blocked . | . . . . Effects 2 | . . . 2 Data Loss (major) 1 | . . . 1 Alerts 1 | . . . 1 Overload Shots . | . . . . Overflow Damage 26 | . . 25 1 Projectiles 14 | . . 13 1 Explosions 12 | . . 12 . Melee . | . . . . Knockbacks 21 | . 10 6 5 Impact . | . . . . Kinetic 19 | . 9 6 4 Secondary 2 | . 1 . 1 Self-Inflicted Damage 140 | . . 140 . Shots 4 | . . 4 . Rammed 4 | . 2 2 . Targets Rammed 4 | . 2 2 . Kicked . | . . . . Crushed . | . . . . Highest Temperature 156 | 156 96 45 120 Average Temperature 32 | 58 25 14 45 Received Heat Transfer 402 | . 294 36 72 Siege Activations . | . . . . Martial Activations . | . . . . Shielding Activations . | . . . . Robots Disrupted . | . . . . Combat Hostiles . | . . . . Robots Corrupted . | . . . . Combat Hostiles . | . . . . Parts Fried . | . . . . Impact Corruptions . | . . . . Robots Melted . | . . . . Combat Hostiles . | . . . . Parts Melted . | . . . . Heat Transferred 370 | 370 . . . Parts Sabotaged . | . . . . Parts Stolen . | . . . . Parts Stripped . | . . . . Power Chain Reactions . | . . . . Alert | -11 -10 -10 -10 ------- Run | Yrd Mat Min Exi Maximum Alert Level . | . . . . Low Security (%) 100 | 100 100 100 . Level 1 . | . . . . Level 2 . | . . . . Level 3 . | . . . . Level 4 . | . . . . Level 5 . | . . . . High Security . | . . . . Max Security . | . . . . Peak Influence 92 | 10 68 92 . Initial 20 | . . 20 . Average 19 | 1 18 23 . Influence Increases 687 | 25 369 213 80 Destroy 0b10 Robot/C 400 | . 200 120 80 Destroy 0b10 Robot/NC 70 | 25 40 5 . Destroy Leader 68 | . 48 20 . Successful Hack 26 | . 26 . . Disable Machine 60 | . 45 15 . Destroy Structure 63 | . 10 53 . Influence Decreases 661 | 25 316 217 103 Entered New Map 82 | . . 33 49 Time Decay 549 | 25 316 184 24 Lost Part 30 | . . . 30 Squads Dispatched 1 | . 1 . . Investigation 1 | . 1 . . Extermination . | . . . . Reinforcement . | . . . . Assault . | . . . . Garrison . | . . . . Intercept . | . . . . Searches Triggered . | . . . . Construction Impeded . | . . . . Haulers Reinforced . | . . . . Active Scanning Responses . | . . . . Cargo Convoy Interrupts . | . . . . Stealth | -11 -10 -10 -10 --------- Run | Yrd Mat Min Exi Distress Signals . | . . . . Communications Jammed . | . . . . Distress Signals . | . . . . Times Spotted 33 | . 15 8 10 Peak Tracking Total 5 | . 3 3 5 Tactical Retreats . | . . . . Traps | -11 -10 -10 -10 ------- Run | Yrd Mat Min Exi Traps Triggered 4 | . 2 2 . Indirectly . | . . . . Trap Hack Attempts . | . . . . Triggered . | . . . . Disarmed . | . . . . Reprogrammed . | . . . . Reused . | . . . . Traps Extracted . | . . . . Installed . | . . . . Triggered . | . . . . Machines | -11 -10 -10 -10 ---------- Run | Yrd Mat Min Exi Machines Disabled 7 | . 3 1 3 Max in Single Turn 2 | . 1 1 2 Machines Repaired . | . . . . Machines Dismantled . | . . . . Machines Sabotaged . | . . . . Overloaded Fab Kills . | . . . . Hacking | -11 -10 -10 -10 --------- Run | Yrd Mat Min Exi Machines Accessed 14 | . 9 3 2 Terminals 8 | . 7 1 . Fabricators . | . . . . Repair Stations 1 | . 1 . . Recycling Units 1 | . 1 . . Scanalyzers . | . . . . Garrison Access . | . . . . Total Hacks 63 | . 35 4 24 Successful 43 | . 17 2 24 Failed 20 | . 18 2 . Catastrophic 3 | . 2 1 . Database Lockouts . | . . . . Manual 16 | . 12 2 2 Terminals 29 | . 27 2 . Fabricators . | . . . . Repair Stations 6 | . 6 . . Recycling Units 2 | . 2 . . Scanalyzers . | . . . . Garrison Access . | . . . . Terminal Hacks 36 | . 10 2 24 Record 23 | . . . 23 Robot Analysis 3 | . 3 . . Prototype ID Bank 3 | . 3 . . Open Door 2 | . . 2 . Branch Access Points 1 | . 1 . . Hauler Manifests 1 | . 1 . . Registered Components 1 | . 1 . . Zone Layout 1 | . 1 . . Proto ID Catalog 1 | . . . 1 Fabricator Hacks . | . . . . Repair Station Hacks 4 | . 4 . . Scan Component 2 | . 2 . . Repair 2 | . 2 . . Recycling Unit Hacks 1 | . 1 . . Report Inventory 1 | . 1 . . Scanalyzer . | . . . . Garrison Access Hacks . | . . . . Unauthorized Hacks 2 | . 2 . . Terminals 2 | . 2 . . Botnet 2 | . 2 . . Fabricators . | . . . . Repair Stations . | . . . . Recycling Units . | . . . . Scanalyzers . | . . . . Garrison Access . | . . . . Data Cores Recovered . | . . . . Used . | . . . . Hacking Detections 9 | . 8 1 . Full Trace Events . | . . . . Feedback Events . | . . . . Feedback Blocked . | . . . . Robot Schematics Acquired . | . . . . Robots Built . | . . . . Authchips . | . . . . Time . | . . . . Total Robot Build Rating . | . . . . Part Schematics Acquired . | . . . . Parts Built . | . . . . Authchips . | . . . . Time . | . . . . Total Part Build Rating . | . . . . Part Studies Acquired . | . . . . Parts Repaired 2 | . 2 . . Time 64 | . 64 . . Parts Recycled . | . . . . Recycled Matter . | . . . . Retrieved Matter . | . . . . Retrieved Components . | . . . . Parts Scanalyzed . | . . . . Part Schematics Acquired . | . . . . Parts Damaged . | . . . . Bothacking | -11 -10 -10 -10 ------------ Run | Yrd Mat Min Exi Used RIF Installer . | . . . . Robots Hacked 2 | . 2 . . Non-combat 2 | . 2 . . Combat . | . . . . Robot Hacks Applied 2 | . 2 . . parse_system 1 | . 1 . . find_recycling 1 | . 1 . . Relay Couplers Released . | . . . . Fabnet Peak Effective % . | . . . . Robots Rewired . | . . . . Allies Hacked . | . . . . Hacks Repelled . | . . . . Allies | -11 -10 -10 -10 -------- Run | Yrd Mat Min Exi Total Allies . | . . . . Largest Group . | . . . . Highest-Rated Group . | . . . . Highest-Rated Ally . | . . . . Total Orders . | . . . . Ally Attacks . | . . . . Total Damage . | . . . . Kills . | . . . . Allies Corrupted . | . . . . Allies Melted . | . . . . Intel | -11 -10 -10 -10 ------- Run | Yrd Mat Min Exi Active Infowar (turns) 2780 | 16 1631 929 204 Sensors 2714 | . 1581 929 204 Seismic 66 | 16 50 . . Robot Analysis Total 3 | . 3 . . Derelict Logs Recovered 1 | . . 1 . Drone Launches . | . . . . Drone Recoveries . | . . . . Exploration | -11 -10 -10 -10 ------------- Run | Yrd Mat Min Exi Turns Passed 3337 | 183 1633 949 572 Spaces Moved 1832 | 114 823 549 346 Core 12 | 12 . . . Treads 1710 | . 815 549 346 Legs 110 | 102 8 . . Wheels . | . . . . Hover . | . . . . Flight . | . . . . Fastest Speed 50 | 50 120 152 152 Average Speed 154 | 117 159 154 152 Slowest Speed 240 | 150 240 160 152 Overloaded Moves . | . . . . Propulsion Burnouts . | . . . . Robots Hopped . | . . . . Potential Cave-ins . | . . . . Cave-ins Triggered . | . . . . Exploration Rate (%) 63 | 5 98 98 52 Regions Visited 3 Branch Regions 2 Pre-discovered Areas 2 | . . 1 1 Known Exits Taken 1 | . 1 . . Unknown Exits Taken 2 | 1 . 1 . Scrap Searched 1 | . . 1 . Spaces Dug 2 | . 1 1 . Terrain Destroyed 98 | . 8 85 5 Melee 2 | . 1 1 . Projectile 8 | . 7 1 . AOE 88 | . . 83 5 Terrain Rammed . | . . . . Walls Destroyed . | . . . . Machines Disabled . | . . . . Actions | -11 -10 -10 -10 --------- Run | Yrd Mat Min Exi Total 2161 | 138 1042 614 367 Wait 137 | . 115 19 3 Move 1829 | 113 822 548 346 Hop . | . . . . Pick Up 28 | 7 15 5 1 Fast Attach 11 | 7 3 1 . Attach 1 | . . . 1 Detach . | . . . . Swap 41 | 1 24 14 2 Drop 21 | . 11 9 1 Fire 83 | 10 45 15 13 Melee 6 | . 5 1 . Ram . | . . . . Kick . | . . . . Crush 4 | . 2 2 . Escape Stasis . | . . . . Rewire . | . . . . Trap . | . . . . Miscellaneous . | . . . . Route ------- -11/Scrapyard -10/Materials (discovered 5 exits: [*Mat x3] / *Min x2) -10/Mines (discovered 4 exits: [*Mat x2] / *Exi / *Sub) -10/Exiles History --------- Turn | Location | Event 16 | -11/Scrapyard | Discovered new exit (range 15) 184 | -11/Scrapyard | Entered Materials 312 | -10/Materials | Build established: Mutant 489 | -10/Materials | Discovered new exit (range 11) 726 | -10/Materials | Repaired Lgt. Treads 735 | -10/Materials | Discovered new exit (range 7) 805 | -10/Materials | Discovered new exit (range 14) 884 | -10/Materials | Derelicts attacked the area 892 | -10/Materials | Discovered new exit (range 5) 1212 | -10/Materials | Identified exit to Mines 1260 | -10/Materials | Discovered new exit (range 8) 1800 | -10/Materials | Repaired Lgt. Nuclear Core 1817 | -10/Materials | Entered Mines 1841 | -10/Mines | Met a Derelict bent on vengeance 1997 | -10/Mines | Learned location of Zion (-6) 2036 | -10/Mines | Received a Rocket Launcher from a helpful Derelict 2146 | -10/Mines | Discovered new exit (range 6) 2163 | -10/Mines | Met a Derelict who couldn't figure out how to use a Trap Extractor 2242 | -10/Mines | Found DCF Scrap (13 items) 2315 | -10/Mines | Core integrity fell below 50% 2443 | -10/Mines | Discovered new exit (range 6) 2522 | -10/Mines | Found the Drone Emporium 2537 | -10/Mines | Discovered new exit (range 3) 2541 | -10/Mines | Identified exit to Subcaves 2760 | -10/Mines | Deemed a non-threat by the Exiles lab entrance 2760 | -10/Mines | Discovered new exit (range 5) 2766 | -10/Mines | Entered Exiles 2806 | -10/Exiles | Met 8R-AWN 2833 | -10/Exiles | Met EX-HEX 2894 | -10/Exiles | Met EX-DEC 2937 | -10/Exiles | Met EX-BIN 2958 | -10/Exiles | Aligned with FarCom system 2960 | -10/Exiles | Given EX-Vault access code 3030 | -10/Exiles | Opened EX-Vault 3069 | -10/Exiles | Warned to stay clear of 0b10 Research branches 3092 | -10/Exiles | Exiles lab attacked by MAIN.C 3234 | -10/Exiles | Found Modified TNC 3304 | -10/Exiles | Core integrity fell below 20% 3338 | -10/Exiles | Destroyed by H-55 Commando with Gauss Rifle Last Messages --------------- 03313_ P-60 Hacker knocked back. 03315_ Slug penetrates Wall. 03316_ System corrupted: IFF burst signal emitted. 03316_ G-34 Mercenary destroyed. 03317_ Chain reaction triggered in Ion Engine. 03317_ G-34 Mercenary destroyed. 03318_ Slug penetrates Wall. 03319_ Machine disabled. 03321_ Slug penetrates Wall. 03321_ Lgt. Armor Plating destroyed. 03324_ P-60 Hacker destroyed. 03328_ Acquired 29 matter. 03329_ Penetrated by Slug. 03332_ System corrupted: Substantial component data lost. 03332_ Rocket Launcher destroyed. 03335_ Penetrated by Slug. 03335_ FarCom Aligner disabled. 03336_ Penetrated by Slug. 03336_ Imp. Light Cannon destroyed. 03338_ Penetrated by Slug. Map ----- +----------------------------------------------------+ | ???????????????????# #########???????????????? | | ???????????????????# ##""""""#???????????????? | | ???????????????????# ## """#???????????????? | | ???????????????????# X""#???????????????? | | ???????????????????# ## """#???????????????? | | ???????????######### ##""""""#???????????????? | | ???????????#""""""## #########???????????????? | | ???????????#"""" ## #???????????????????????? | | ???????????#""X" #???????????????????????? | | ???????????#" #???????????????????????? | | ???????????#" ## #???????????????????????? | | ???????????#""""""## #?#########?????????????? | | ???????????##"###### #?#"""""""#?????????????? | | ??????????? "?????# #?#"""""""#?????????????? | | ??????????"""??????# #?#"""""""#?????????????? | | ??????????"""?????## ### " """"#?????????????? | | ??????????????????#" ! """"#?????????????? | | ??????????????????#" """#?????????????? | | ??????????????????#" """#?????????????? | | ??????????????????#" """#?????????????? | | ????#######???????#" """#?????????????? | | ???# """#???????#" """#?????????????? | | ???#"" """#???????## """"?????????????? | | ???#"" #????????# """#?????????????? | | ???#"" #????????# "X" """"?????????????? | | ???#"" "#???????## @ """ #?????????????? | | ???# ""#??????## ==b """""""""#?????????????? | | ???#"" ""#??????# | ###########?????????????? | | ???### ###??????# =%h#???????????????????????? | | ???### ###?##### #???????????????????????? | | ####X# #"###"""" ##??????????????????????? | | """""" " " ##???###########???????? | | "" """ % #####"""""""""##??????? | | " " " """ """"##?????? | | h "" " #?????? | | % " """#?????? | | " "#?????? | | ! % =[% " "##????? | | % |%[ %%=% ""###??? | | " !"""""" =[= """#??? | | ######"" "#??? | | ""##????#####""" ##?? | | """##?????????##""" ##? | | """##???????????#"""" ## | | ""#????????????#"" | | #?????????????"""" | | ?????????????? | | ???????????? | | ?? ???????????? # | | ????? ???????????? ## | +----------------------------------------------------+ Best States ------------- Heat Dissipation 25 Energy Generation 10 Energy Capacity 250 Matter Stores 300 Matter Capacity 300 Sight Range 16 Robot Scan Range 14 Terrain Scan Density 10 Armor Coverage 150 Evasion (%) 55 Recoil Reduction 2 Item Schematics ----------------- None Robot Schematics ------------------ None Fabricated ------------ Nothing Repaired ---------- Lgt. Treads | 62% | -10/Materials Lgt. Nuclear Core | 58% | -10/Materials Studied --------- None Alien Tech Used ----------------- None Achievements -------------- None Challenges ------------ None Game ------ Seed ScanForceAutohacker Manual? 0 Play Time 00:30:39 Cumulative 36.8 hours Start 2026.01.06 @ 22:23:11 End 2026.01.06 @ 22:55:28 Sessions 1 Manual Loads 0 Difficulty Rogue Special Mode None Game No. 47 Rogue 47 Adventurer 0 Explorer 0 Win Type - Total 0 Types 0/0/0/0/0/0/0/0/0/0 Lore% 33 Gallery% 34 Achievement% 24 Wizard Run 0 Options --------- Layout 0 ASCII 0 Keyboard 0 Movement Arrows Keybinds 1 Fullscreen 1 Font 18/X11 Map View 76x50 Zoom Use 0% Tactical HUD 1 Map Filters NONE Filters NONE Steam 1 RUN: 42943bca-ea7a-491d-b4a0-19649c3286e6